[Event "Late-Titled-Tuesday-Blitz-May-07-2024"]
[Site "Chess.com"]
[Date "2024.05.07"]
[Round "10"]
[White "cristianserban1"]
[Black "crescentmoon2411"]
[Result "1-0"]
[WhiteElo "2657"]
[BlackElo "2855"]
[TimeControl "180+1"]
[EndTime "15:55:21 PDT"]
[Termination "cristianserban1 won by resignation"]

1. Nf3 {[%clk 0:03:00.9]} 1... g6 {[%clk 0:02:56]} 2. b3 {[%clk 0:02:58.3]} 2...
Bg7 {[%clk 0:02:56.9]} 3. d4 {[%clk 0:02:58.6]} 3... c5 {[%clk 0:02:56.9]} 4.
Bb2 {[%clk 0:02:59.1]} 4... c4 {[%clk 0:02:57.3]} 5. bxc4 {[%clk 0:02:57.4]}
5... Nf6 {[%clk 0:02:57.8]} 6. e3 {[%clk 0:02:54.6]} 6... O-O {[%clk 0:02:58.7]}
7. Bd3 {[%clk 0:02:52.2]} 7... d6 {[%clk 0:02:59.6]} 8. O-O {[%clk 0:02:52.1]}
8... b6 {[%clk 0:03:00.1]} 9. Nbd2 {[%clk 0:02:49.2]} 9... Bb7 {[%clk 0:03:01]}
10. e4 {[%clk 0:02:43]} 10... Nbd7 {[%clk 0:03:01.9]} 11. Qe2 {[%clk 0:02:40.6]}
11... e5 {[%clk 0:03:02.8]} 12. d5 {[%clk 0:02:40.5]} 12... Nc5 {[%clk
0:03:02.6]} 13. Nb3 {[%clk 0:02:39.7]} 13... Nh5 {[%clk 0:03:03.3]} 14. Nxc5
{[%clk 0:02:38.2]} 14... Nf4 {[%clk 0:03:04]} 15. Qd1 {[%clk 0:02:27.6]} 15...
bxc5 {[%clk 0:03:04.4]} 16. Re1 {[%clk 0:02:23.1]} 16... Bc8 {[%clk 0:03:04.2]}
17. Bf1 {[%clk 0:02:18]} 17... Rb8 {[%clk 0:03:04]} 18. Rb1 {[%clk 0:02:17.7]}
18... f5 {[%clk 0:03:03.6]} 19. g3 {[%clk 0:01:42.8]} 19... fxe4 {[%clk
0:03:03.3]} 20. Nd2 {[%clk 0:01:42.8]} 20... e3 {[%clk 0:03:03.2]} 21. Rxe3
{[%clk 0:01:31.3]} 21... Nh3+ {[%clk 0:03:01.3]} 22. Bxh3 {[%clk 0:01:31.5]}
22... Bxh3 {[%clk 0:03:02.2]} 23. Ne4 {[%clk 0:01:32]} 23... Bf5 {[%clk
0:03:01.6]} 24. Qe2 {[%clk 0:01:25.6]} 24... Bxe4 {[%clk 0:03:00.4]} 25. Rxe4
{[%clk 0:01:25.8]} 25... Qd7 {[%clk 0:03:00.2]} 26. Re3 {[%clk 0:01:23.8]} 26...
Rf7 {[%clk 0:02:59.9]} 27. Rb3 {[%clk 0:01:22.3]} 27... Rbf8 {[%clk 0:03:00]}
28. Rf1 {[%clk 0:01:21.8]} 28... h5 {[%clk 0:03:00.7]} 29. h4 {[%clk 0:01:12.4]}
29... Kh7 {[%clk 0:03:00.3]} 30. Bc1 {[%clk 0:01:12.5]} 30... Qf5 {[%clk
0:02:58.6]} 31. Kg2 {[%clk 0:01:06.7]} 31... e4 {[%clk 0:02:58.6]} 32. Bf4
{[%clk 0:01:04.1]} 32... Be5 {[%clk 0:02:53.6]} 33. Bxe5 {[%clk 0:01:04.2]}
33... Qxe5 {[%clk 0:02:54.5]} 34. Re3 {[%clk 0:01:03.7]} 34... Re7 {[%clk
0:02:54.3]} 35. Re1 {[%clk 0:01:02.6]} 35... Rfe8 {[%clk 0:02:47.9]} 36. Rb3
{[%clk 0:00:47.5]} 36... a5 {[%clk 0:02:46.6]} 37. Reb1 {[%clk 0:00:45.8]} 37...
Qd4 {[%clk 0:02:45.1]} 38. Rb7 {[%clk 0:00:43.5]} 38... a4 {[%clk 0:02:42.1]}
39. Qe3 {[%clk 0:00:35.4]} 39... Qg7 {[%clk 0:02:35.7]} 40. Rxe7 {[%clk
0:00:33.5]} 40... Rxe7 {[%clk 0:02:36.6]} 41. Rb6 {[%clk 0:00:33.7]} 41... Qf6
{[%clk 0:02:35.8]} 42. Qf4 {[%clk 0:00:31]} 42... Qxf4 {[%clk 0:02:31.6]} 43.
gxf4 {[%clk 0:00:31.9]} 43... e3 {[%clk 0:02:26.3]} 44. fxe3 {[%clk 0:00:28]}
44... Rxe3 {[%clk 0:02:27.2]} 45. Rxd6 {[%clk 0:00:28.3]} 45... Rc3 {[%clk
0:02:27.6]} 46. Ra6 {[%clk 0:00:25.2]} 46... Rxc2+ {[%clk 0:02:27.4]} 47. Kf3
{[%clk 0:00:25.6]} 47... Rc3+ {[%clk 0:02:28]} 48. Ke4 {[%clk 0:00:24.3]} 48...
Rxc4+ {[%clk 0:02:28]} 49. Ke5 {[%clk 0:00:24.8]} 49... Rd4 {[%clk 0:02:27.2]}
50. d6 {[%clk 0:00:24.4]} 50... Kg7 {[%clk 0:02:26.4]} 51. Ra5 {[%clk 0:00:18]}
51... Rd2 {[%clk 0:02:18.7]} 52. Rxc5 {[%clk 0:00:18.1]} 52... Re2+ {[%clk
0:02:19]} 53. Kd5 {[%clk 0:00:14.3]} 53... Kf6 {[%clk 0:02:19.2]} 54. Kc6 {[%clk
0:00:13.3]} 54... Rxa2 {[%clk 0:02:19.2]} 55. d7 {[%clk 0:00:13.6]} 55... Rd2
{[%clk 0:02:19.3]} 56. Kc7 {[%clk 0:00:12.9]} 56... a3 {[%clk 0:02:18.7]} 57.
d8=Q+ {[%clk 0:00:12.9]} 57... Rxd8 {[%clk 0:02:18.9]} 58. Kxd8 {[%clk
0:00:13.8]} 58... a2 {[%clk 0:02:19.6]} 59. Ra5 {[%clk 0:00:14.4]} 59... a1=Q
{[%clk 0:02:18.5]} 60. Rxa1 {[%clk 0:00:14.7]} 60... Kf5 {[%clk 0:02:19.4]} 61.
Rg1 {[%clk 0:00:14.9]} 1-0

[Event "Late-Titled-Tuesday-Blitz-May-07-2024"]
[Site "Chess.com"]
[Date "2024.05.07"]
[Round "10"]
[White "GMG"]
[Black "Nf3c5"]
[Result "1-0"]
[WhiteElo "2824"]
[BlackElo "2644"]
[TimeControl "180+1"]
[EndTime "15:55:34 PDT"]
[Termination "GMG won on time"]

1. Nf3 {[%clk 0:02:58.9]} 1... d5 {[%clk 0:01:57.9]} 2. g3 {[%clk 0:02:57.9]}
2... Nf6 {[%clk 0:01:57.9]} 3. Bg2 {[%clk 0:02:58]} 3... c6 {[%clk 0:01:58.7]}
4. c4 {[%clk 0:02:58.3]} 4... Bf5 {[%clk 0:01:59.2]} 5. O-O {[%clk 0:02:57.4]}
5... e6 {[%clk 0:01:59.2]} 6. d3 {[%clk 0:02:57.7]} 6... h6 {[%clk 0:01:58.7]}
7. Qb3 {[%clk 0:02:57.4]} 7... Qb6 {[%clk 0:01:58.2]} 8. Be3 {[%clk 0:02:57.6]}
8... Qxb3 {[%clk 0:01:57.5]} 9. axb3 {[%clk 0:02:58.5]} 9... a6 {[%clk 0:01:55]}
10. Nc3 {[%clk 0:02:53.1]} 10... Nbd7 {[%clk 0:01:54.5]} 11. cxd5 {[%clk
0:02:53.2]} 11... exd5 {[%clk 0:01:54.2]} 12. Nd4 {[%clk 0:02:52.2]} 12... Bh7
{[%clk 0:01:45]} 13. Nc2 {[%clk 0:02:52.1]} 13... Bd6 {[%clk 0:01:42.2]} 14. b4
{[%clk 0:02:51.8]} 14... O-O {[%clk 0:01:42.8]} 15. Na4 {[%clk 0:02:44.5]} 15...
Ng4 {[%clk 0:01:38.5]} 16. Bd4 {[%clk 0:02:43.8]} 16... Rfe8 {[%clk 0:01:33.7]}
17. Rfe1 {[%clk 0:02:42.6]} 17... Be5 {[%clk 0:01:15.3]} 18. Bh3 {[%clk
0:02:36.5]} 18... Ngf6 {[%clk 0:01:12.3]} 19. Nc5 {[%clk 0:02:22.2]} 19... Nxc5
{[%clk 0:01:03.9]} 20. bxc5 {[%clk 0:02:23.1]} 20... Bxd4 {[%clk 0:01:01.9]} 21.
Nxd4 {[%clk 0:02:22.9]} 21... Re7 {[%clk 0:01:02.5]} 22. f3 {[%clk 0:02:12.8]}
22... Rae8 {[%clk 0:00:54]} 23. Kf2 {[%clk 0:02:13.2]} 23... Rd8 {[%clk
0:00:44.9]} 24. Ra3 {[%clk 0:02:12.3]} 24... Kf8 {[%clk 0:00:24.1]} 25. Rea1
{[%clk 0:02:09.8]} 25... Rc7 {[%clk 0:00:24.2]} 26. Rb3 {[%clk 0:02:08.8]} 26...
Re8 {[%clk 0:00:24.8]} 27. Ra4 {[%clk 0:02:05.1]} 27... Ree7 {[%clk 0:00:25.4]}
28. Rab4 {[%clk 0:02:04.2]} 28... g6 {[%clk 0:00:24.2]} 29. e4 {[%clk
0:01:56.5]} 29... dxe4 {[%clk 0:00:21.6]} 30. dxe4 {[%clk 0:01:56.9]} 30... Ne8
{[%clk 0:00:12.3]} 31. Rd3 {[%clk 0:01:52.6]} 31... Bg8 {[%clk 0:00:12.3]} 32.
Nb3 {[%clk 0:01:50.9]} 32... Nf6 {[%clk 0:00:10.2]} 33. Rbd4 {[%clk 0:01:47.9]}
33... Kg7 {[%clk 0:00:10.2]} 34. Na5 {[%clk 0:01:47.6]} 34... Nh7 {[%clk
0:00:09]} 35. Rd7 {[%clk 0:01:37.4]} 35... Nf8 {[%clk 0:00:05]} 36. Rxc7 {[%clk
0:01:33.7]} 36... Rxc7 {[%clk 0:00:05.9]} 37. Rd8 {[%clk 0:01:34]} 37... f5
{[%clk 0:00:05.4]} 38. exf5 {[%clk 0:01:33.8]} 38... gxf5 {[%clk 0:00:05.8]} 39.
Bxf5 {[%clk 0:01:33.4]} 39... Bd5 {[%clk 0:00:05.2]} 40. Rb8 {[%clk 0:01:27.9]}
40... Rf7 {[%clk 0:00:01.1]} 41. Rxb7 {[%clk 0:01:26.8]} 1-0

[Event "Late-Titled-Tuesday-Blitz-May-07-2024"]
[Site "Chess.com"]
[Date "2024.05.07"]
[Round "10"]
[White "Vazabanga"]
[Black "pouya21"]
[Result "0-1"]
[WhiteElo "2693"]
[BlackElo "2859"]
[TimeControl "180+1"]
[EndTime "15:55:36 PDT"]
[Termination "pouya21 won on time"]

1. d4 {[%clk 0:03:00.9]} 1... Nf6 {[%clk 0:02:59.2]} 2. c4 {[%clk 0:03:01.2]}
2... e6 {[%clk 0:02:59]} 3. g3 {[%clk 0:03:01.2]} 3... c5 {[%clk 0:02:59.1]} 4.
d5 {[%clk 0:03:01.5]} 4... exd5 {[%clk 0:03:00]} 5. cxd5 {[%clk 0:03:02.3]} 5...
d6 {[%clk 0:03:00.7]} 6. Nc3 {[%clk 0:03:02.2]} 6... g6 {[%clk 0:03:01.2]} 7.
Bg2 {[%clk 0:03:02.8]} 7... Bg7 {[%clk 0:03:01.9]} 8. Nf3 {[%clk 0:03:03.4]}
8... O-O {[%clk 0:03:02.6]} 9. O-O {[%clk 0:03:04]} 9... Re8 {[%clk 0:03:03.2]}
10. Nd2 {[%clk 0:03:04.3]} 10... a6 {[%clk 0:03:01.4]} 11. a4 {[%clk 0:03:04.4]}
11... Nbd7 {[%clk 0:03:02]} 12. h3 {[%clk 0:03:04.4]} 12... Rb8 {[%clk
0:02:57.4]} 13. a5 {[%clk 0:02:38.5]} 13... Nh5 {[%clk 0:02:21.9]} 14. e4 {[%clk
0:02:25]} 14... Ne5 {[%clk 0:02:21.1]} 15. g4 {[%clk 0:02:13]} 15... Nf4 {[%clk
0:02:17.7]} 16. Nf3 {[%clk 0:02:05.5]} 16... Ned3 {[%clk 0:01:51.2]} 17. Ra2
{[%clk 0:01:14.6]} 17... Nxc1 {[%clk 0:01:43.6]} 18. Qxc1 {[%clk 0:01:15.5]}
18... Bxc3 {[%clk 0:01:25.4]} 19. bxc3 {[%clk 0:01:14.9]} 19... Rxe4 {[%clk
0:01:19]} 20. Qb1 {[%clk 0:00:51.9]} 20... Qe7 {[%clk 0:01:12.6]} 21. Nd2 {[%clk
0:00:32.4]} 21... Re2 {[%clk 0:01:10.2]} 22. Rb2 {[%clk 0:00:13]} 22... h5
{[%clk 0:01:02]} 23. Nc4 {[%clk 0:00:03.6]} 23... hxg4 {[%clk 0:00:58.3]} 24.
hxg4 {[%clk 0:00:03.6]} 24... Bxg4 {[%clk 0:00:57.8]} 25. Ne3 {[%clk 0:00:02.4]}
25... Bh5 {[%clk 0:00:50.8]} 0-1

[Event "Late-Titled-Tuesday-Blitz-May-07-2024"]
[Site "Chess.com"]
[Date "2024.05.07"]
[Round "10"]
[White "rionelG"]
[Black "SoCalJuniorChess"]
[Result "0-1"]
[WhiteElo "2264"]
[BlackElo "2191"]
[TimeControl "180+1"]
[EndTime "15:55:41 PDT"]
[Termination "SoCalJuniorChess won on time"]

1. e4 {[%clk 0:02:12.3]} 1... d5 {[%clk 0:02:57.6]} 2. exd5 {[%clk 0:02:12.1]}
2... Qxd5 {[%clk 0:02:57.3]} 3. Nc3 {[%clk 0:02:12.3]} 3... Qd8 {[%clk
0:02:57.2]} 4. d4 {[%clk 0:02:11.3]} 4... Nf6 {[%clk 0:02:56.7]} 5. g3 {[%clk
0:02:11.8]} 5... Bg4 {[%clk 0:02:54.1]} 6. Nf3 {[%clk 0:02:07.5]} 6... Bxf3
{[%clk 0:02:50.3]} 7. Qxf3 {[%clk 0:02:08.4]} 7... c6 {[%clk 0:02:50.3]} 8. Be3
{[%clk 0:02:07.7]} 8... e6 {[%clk 0:02:50.1]} 9. O-O-O {[%clk 0:02:07.8]} 9...
Bb4 {[%clk 0:02:49.1]} 10. Ne4 {[%clk 0:02:06.5]} 10... Nd5 {[%clk 0:02:47.9]}
11. Ng5 {[%clk 0:01:54.7]} 11... O-O {[%clk 0:02:40.7]} 12. Qh5 {[%clk
0:01:54.2]} 12... h6 {[%clk 0:02:38.6]} 13. h4 {[%clk 0:01:43.3]} 13... Qa5
{[%clk 0:02:23.6]} 14. Bc4 {[%clk 0:01:31.7]} 14... Nc3 {[%clk 0:02:18.3]} 15.
bxc3 {[%clk 0:01:11.2]} 15... Bxc3 {[%clk 0:02:16.3]} 16. Kb1 {[%clk 0:01:09.5]}
16... Qb4+ {[%clk 0:01:56.3]} 17. Bb3 {[%clk 0:01:09.1]} 17... a5 {[%clk
0:01:56.7]} 18. Ne4 {[%clk 0:00:41.1]} 18... a4 {[%clk 0:01:55.3]} 19. Nxc3
{[%clk 0:00:41]} 19... axb3 {[%clk 0:01:53.6]} 20. cxb3 {[%clk 0:00:34]} 20...
Qxc3 {[%clk 0:01:53.4]} 21. Rc1 {[%clk 0:00:17.5]} 21... Qd3+ {[%clk 0:01:52.3]}
22. Rc2 {[%clk 0:00:17.3]} 22... Rxa2 {[%clk 0:01:50.9]} 23. Kxa2 {[%clk
0:00:12.7]} 23... Qxc2+ {[%clk 0:01:50.7]} 24. Ka3 {[%clk 0:00:13.2]} 24... Nd7
{[%clk 0:01:49.3]} 25. Bxh6 {[%clk 0:00:11.3]} 25... Ra8+ {[%clk 0:01:46.5]} 26.
Kb4 {[%clk 0:00:11.3]} 26... gxh6 {[%clk 0:01:36.2]} 27. g4 {[%clk 0:00:04]}
27... Qg6 {[%clk 0:01:32.9]} 28. Qxg6+ {[%clk 0:00:04.1]} 28... fxg6 {[%clk
0:01:32.5]} 29. Re1 {[%clk 0:00:03.7]} 29... Kf7 {[%clk 0:01:31.8]} 30. f4
{[%clk 0:00:04.1]} 30... Nf6 {[%clk 0:01:31.3]} 31. g5 {[%clk 0:00:03.9]} 31...
Nd5+ {[%clk 0:01:29.8]} 32. Kc5 {[%clk 0:00:01.1]} 32... Nxf4 {[%clk 0:01:30.3]}
33. Kb6 {[%clk 0:00:01.5]} 33... hxg5 {[%clk 0:01:29.5]} 34. Kxb7 {[%clk
0:00:01.4]} 34... Ra3 {[%clk 0:01:29.8]} 35. hxg5 {[%clk 0:00:01.9]} 35... Rxb3+
{[%clk 0:01:29.9]} 36. Kxc6 {[%clk 0:00:02.2]} 36... Rg3 {[%clk 0:01:30.4]} 37.
Re5 {[%clk 0:00:01.5]} 37... Rd3 {[%clk 0:01:28]} 38. Kc5 {[%clk 0:00:00.8]}
38... Rc3+ {[%clk 0:01:24.8]} 39. Kd6 {[%clk 0:00:00.6]} 39... Rc4 {[%clk
0:01:25.5]} 0-1

[Event "Late-Titled-Tuesday-Blitz-May-07-2024"]
[Site "Chess.com"]
[Date "2024.05.07"]
[Round "10"]
[White "Goryachkina"]
[Black "Blackmind96"]
[Result "0-1"]
[WhiteElo "2689"]
[BlackElo "2884"]
[TimeControl "180+1"]
[EndTime "15:55:43 PDT"]
[Termination "Blackmind96 won on time"]

1. e4 {[%clk 0:02:59.9]} 1... c5 {[%clk 0:02:56.5]} 2. Nf3 {[%clk 0:02:59.9]}
2... d6 {[%clk 0:02:56.5]} 3. Bb5+ {[%clk 0:02:59.6]} 3... Nd7 {[%clk
0:02:56.2]} 4. O-O {[%clk 0:02:59.4]} 4... a6 {[%clk 0:02:56.1]} 5. Bxd7+ {[%clk
0:02:59.3]} 5... Bxd7 {[%clk 0:02:57]} 6. c3 {[%clk 0:02:59.3]} 6... Nf6 {[%clk
0:02:56.2]} 7. Re1 {[%clk 0:02:59.4]} 7... e5 {[%clk 0:02:55.2]} 8. d4 {[%clk
0:02:57.7]} 8... Qc7 {[%clk 0:02:52.9]} 9. Bg5 {[%clk 0:02:47.2]} 9... Be7
{[%clk 0:02:50.5]} 10. Nbd2 {[%clk 0:02:46.9]} 10... b5 {[%clk 0:02:49.1]} 11.
Nf1 {[%clk 0:02:33.9]} 11... O-O {[%clk 0:02:45.6]} 12. Ng3 {[%clk 0:02:33.8]}
12... Rfe8 {[%clk 0:02:33.8]} 13. h3 {[%clk 0:02:32.9]} 13... Rad8 {[%clk
0:02:32]} 14. Qd2 {[%clk 0:02:29.7]} 14... Bc8 {[%clk 0:02:29.4]} 15. d5 {[%clk
0:02:24.5]} 15... a5 {[%clk 0:02:21.6]} 16. a4 {[%clk 0:02:21.6]} 16... b4
{[%clk 0:02:20]} 17. c4 {[%clk 0:02:20.5]} 17... Kh8 {[%clk 0:02:05.4]} 18. b3
{[%clk 0:02:19.7]} 18... Ng8 {[%clk 0:02:05]} 19. Be3 {[%clk 0:02:14.4]} 19...
Rf8 {[%clk 0:02:01.4]} 20. Qd3 {[%clk 0:02:02.6]} 20... g6 {[%clk 0:01:59.9]}
21. Nd2 {[%clk 0:01:42.7]} 21... f5 {[%clk 0:01:58.3]} 22. exf5 {[%clk
0:01:36.9]} 22... gxf5 {[%clk 0:01:58]} 23. f4 {[%clk 0:01:36.2]} 23... e4
{[%clk 0:01:57.5]} 24. Qe2 {[%clk 0:01:34]} 24... Bf6 {[%clk 0:01:56.4]} 25.
Rad1 {[%clk 0:01:32.3]} 25... h6 {[%clk 0:01:56.8]} 26. Nh5 {[%clk 0:01:29.3]}
26... Kh7 {[%clk 0:01:55.9]} 27. Nxf6+ {[%clk 0:01:25.5]} 27... Nxf6 {[%clk
0:01:49.9]} 28. Nf1 {[%clk 0:01:25.5]} 28... Rg8 {[%clk 0:01:49.4]} 29. Bc1
{[%clk 0:01:25.1]} 29... Rg6 {[%clk 0:01:49]} 30. Bb2 {[%clk 0:01:21.7]} 30...
Rdg8 {[%clk 0:01:49.5]} 31. Ne3 {[%clk 0:01:19.5]} 31... Qf7 {[%clk 0:01:46.4]}
32. Kh1 {[%clk 0:01:15.8]} 32... Rg3 {[%clk 0:01:43.1]} 33. Bxf6 {[%clk
0:00:47.4]} 33... Qxf6 {[%clk 0:01:40.8]} 34. Kh2 {[%clk 0:00:38.3]} 34... Qh4
{[%clk 0:01:35.2]} 35. Rf1 {[%clk 0:00:15.5]} 35... Bd7 {[%clk 0:01:29.2]} 36.
Rf2 {[%clk 0:00:06.2]} 36... Qf6 {[%clk 0:01:27.7]} 37. Re1 {[%clk 0:00:03.4]}
37... Be8 {[%clk 0:01:26.3]} 38. Rb1 {[%clk 0:00:00.7]} 38... R3g7 {[%clk
0:01:23.8]} 39. Nf1 {[%clk 0:00:00.4]} 39... Bh5 {[%clk 0:01:23.5]} 0-1

[Event "Late-Titled-Tuesday-Blitz-May-07-2024"]
[Site "Chess.com"]
[Date "2024.05.07"]
[Round "10"]
[White "merinasian"]
[Black "Nechitaylo_Nikita"]
[Result "1-0"]
[WhiteElo "2477"]
[BlackElo "2351"]
[TimeControl "180+1"]
[EndTime "15:55:51 PDT"]
[Termination "merinasian won on time"]

1. d4 {[%clk 0:02:59.3]} 1... Nf6 {[%clk 0:02:59.8]} 2. Nf3 {[%clk 0:02:53.3]}
2... e6 {[%clk 0:02:59.4]} 3. g3 {[%clk 0:02:52.6]} 3... c5 {[%clk 0:02:59.3]}
4. Bg2 {[%clk 0:02:52.5]} 4... Nc6 {[%clk 0:02:59.9]} 5. O-O {[%clk 0:02:52.6]}
5... b6 {[%clk 0:02:53.3]} 6. c4 {[%clk 0:02:48.4]} 6... Bb7 {[%clk 0:02:51.3]}
7. d5 {[%clk 0:02:44.3]} 7... exd5 {[%clk 0:02:51.3]} 8. cxd5 {[%clk 0:02:44.5]}
8... Ne7 {[%clk 0:02:46.4]} 9. e4 {[%clk 0:02:39.8]} 9... Nxe4 {[%clk
0:02:41.7]} 10. d6 {[%clk 0:02:39.1]} 10... Nc8 {[%clk 0:02:37.6]} 11. Re1
{[%clk 0:02:38]} 11... Nxd6 {[%clk 0:02:11.5]} 12. Ng5 {[%clk 0:02:33.8]} 12...
f5 {[%clk 0:01:57.8]} 13. f3 {[%clk 0:02:32.1]} 13... h6 {[%clk 0:01:50.3]} 14.
fxe4 {[%clk 0:02:27.7]} 14... Be7 {[%clk 0:01:21.4]} 15. Qh5+ {[%clk 0:02:23.9]}
15... Kf8 {[%clk 0:01:22]} 16. Nh3 {[%clk 0:01:52]} 16... Bxe4 {[%clk 0:01:16]}
17. Bxe4 {[%clk 0:01:47.1]} 17... fxe4 {[%clk 0:01:16.1]} 18. Nf4 {[%clk
0:01:32.6]} 18... Kg8 {[%clk 0:00:39.2]} 19. Nc3 {[%clk 0:01:30.7]} 19... Bf6
{[%clk 0:00:25]} 20. Nxe4 {[%clk 0:01:27.5]} 20... Bd4+ {[%clk 0:00:13.9]} 21.
Kg2 {[%clk 0:01:25.4]} 21... Qe8 {[%clk 0:00:13.5]} 22. Qd5+ {[%clk 0:01:23.1]}
22... Nf7 {[%clk 0:00:08.2]} 23. Nf6+ {[%clk 0:01:17.4]} 23... Bxf6 {[%clk
0:00:08.2]} 24. Rxe8+ {[%clk 0:01:17.1]} 24... Rxe8 {[%clk 0:00:09.1]} 25. Ng6
{[%clk 0:01:00.3]} 25... Rh7 {[%clk 0:00:08.1]} 26. Bf4 {[%clk 0:00:57.9]} 26...
d6 {[%clk 0:00:05]} 27. Rf1 {[%clk 0:00:46.4]} 27... Bxb2 {[%clk 0:00:04.5]} 28.
Be5 {[%clk 0:00:40.8]} 1-0

[Event "Late-Titled-Tuesday-Blitz-May-07-2024"]
[Site "Chess.com"]
[Date "2024.05.07"]
[Round "10"]
[White "Vincefm"]
[Black "Pachonpower"]
[Result "1-0"]
[WhiteElo "2500"]
[BlackElo "2386"]
[TimeControl "180+1"]
[EndTime "15:55:54 PDT"]
[Termination "Vincefm won by resignation"]

1. e4 {[%clk 0:02:59.2]} 1... e6 {[%clk 0:02:59.9]} 2. Qe2 {[%clk 0:02:56.5]}
2... g6 {[%clk 0:02:51.7]} 3. g3 {[%clk 0:02:56.6]} 3... Bg7 {[%clk 0:02:52]} 4.
Bg2 {[%clk 0:02:57]} 4... Ne7 {[%clk 0:02:52.5]} 5. Nf3 {[%clk 0:02:57.4]} 5...
O-O {[%clk 0:02:53.1]} 6. O-O {[%clk 0:02:57.8]} 6... d5 {[%clk 0:02:53.7]} 7.
d3 {[%clk 0:02:58]} 7... c5 {[%clk 0:02:53]} 8. Nc3 {[%clk 0:02:57.1]} 8... d4
{[%clk 0:02:53.1]} 9. Nb1 {[%clk 0:02:56.2]} 9... Nbc6 {[%clk 0:02:53.4]} 10. a4
{[%clk 0:02:56.5]} 10... e5 {[%clk 0:02:53.5]} 11. Nbd2 {[%clk 0:02:54.9]} 11...
Be6 {[%clk 0:02:51.8]} 12. Re1 {[%clk 0:02:55.2]} 12... f6 {[%clk 0:02:51.4]}
13. Nf1 {[%clk 0:02:55.3]} 13... Re8 {[%clk 0:02:51.4]} 14. h4 {[%clk
0:02:55.7]} 14... Nc8 {[%clk 0:02:51.6]} 15. N3h2 {[%clk 0:02:52.9]} 15... Qd7
{[%clk 0:02:51.7]} 16. h5 {[%clk 0:02:51.4]} 16... Bh3 {[%clk 0:02:46.6]} 17.
Qf3 {[%clk 0:02:42.7]} 17... Bxg2 {[%clk 0:02:46.4]} 18. Kxg2 {[%clk 0:02:42.8]}
18... Nd6 {[%clk 0:02:42.5]} 19. g4 {[%clk 0:02:35]} 19... Rf8 {[%clk
0:02:39.8]} 20. Qh3 {[%clk 0:02:18.3]} 20... Nb4 {[%clk 0:02:38.2]} 21. Re2
{[%clk 0:02:15.2]} 21... f5 {[%clk 0:02:36.1]} 22. f3 {[%clk 0:02:14.8]} 22...
fxe4 {[%clk 0:02:30.7]} 23. fxe4 {[%clk 0:02:12.8]} 23... Rf7 {[%clk 0:02:26.4]}
24. Nf3 {[%clk 0:01:45.3]} 24... Raf8 {[%clk 0:02:24.4]} 25. Ng5 {[%clk
0:01:45.4]} 25... c4 {[%clk 0:01:57.2]} 26. hxg6 {[%clk 0:01:43.1]} 26... h6
{[%clk 0:01:41]} 27. gxf7+ {[%clk 0:01:39.7]} 27... Nxf7 {[%clk 0:01:41.5]} 28.
Nxf7 {[%clk 0:01:37.9]} 28... Qxf7 {[%clk 0:01:42.4]} 29. Nh2 {[%clk 0:01:13.8]}
29... cxd3 {[%clk 0:01:39.2]} 30. cxd3 {[%clk 0:01:12.9]} 30... Qb3 {[%clk
0:01:33.3]} 31. Bxh6 {[%clk 0:01:10.4]} 31... Nxd3 {[%clk 0:01:22.7]} 32. Nf3
{[%clk 0:00:44.8]} 32... Rxf3 {[%clk 0:01:11.9]} 33. Qxf3 {[%clk 0:00:39.8]}
33... Bxh6 {[%clk 0:01:12]} 34. Rh1 {[%clk 0:00:28.9]} 34... Bg7 {[%clk
0:00:59.4]} 35. Rh3 {[%clk 0:00:22.5]} 35... Nf4+ {[%clk 0:00:50.7]} 36. Qxf4
{[%clk 0:00:22.9]} 36... Qxh3+ {[%clk 0:00:51.5]} 37. Kxh3 {[%clk 0:00:23.5]}
37... exf4 {[%clk 0:00:52.4]} 38. g5 {[%clk 0:00:24.1]} 38... d3 {[%clk
0:00:42.1]} 39. Rd2 {[%clk 0:00:23.7]} 1-0